[Event "Early-Titled-Tuesday-Blitz-October-10-2023"]
[Site "Chess.com"]
[Date "2023.10.10"]
[Round "9"]
[White "tdf98pantani"]
[Black "Alexander_Donchenko"]
[Result "0-1"]
[WhiteElo "2655"]
[BlackElo "2854"]
[TimeControl "180+1"]
[EndTime "9:42:46 PDT"]
[Termination "Alexander_Donchenko won by resignation"]

1. e4 {[%clk 0:02:57.6]} 1... c6 {[%clk 0:03:00.4]} 2. d4 {[%clk 0:02:56.9]}
2... d5 {[%clk 0:03:01.3]} 3. e5 {[%clk 0:02:56.7]} 3... Bf5 {[%clk 0:03:01.5]}
4. h4 {[%clk 0:02:55.9]} 4... h5 {[%clk 0:03:01.9]} 5. c4 {[%clk 0:02:54.7]}
5... e6 {[%clk 0:03:02]} 6. Nc3 {[%clk 0:02:54.9]} 6... dxc4 {[%clk 0:03:02.5]}
7. Bxc4 {[%clk 0:02:54.3]} 7... Nd7 {[%clk 0:03:03.2]} 8. Nge2 {[%clk
0:02:54.5]} 8... Be7 {[%clk 0:03:03.6]} 9. g3 {[%clk 0:02:48.1]} 9... Nh6 {[%clk
0:03:03.6]} 10. O-O {[%clk 0:02:47.1]} 10... g5 {[%clk 0:03:02]} 11. hxg5 {[%clk
0:02:45.7]} 11... Bxg5 {[%clk 0:03:02.9]} 12. Bxg5 {[%clk 0:02:45.3]} 12... Qxg5
{[%clk 0:03:03.8]} 13. Nf4 {[%clk 0:02:02]} 13... h4 {[%clk 0:03:00.7]} 14. Qh5
{[%clk 0:02:01]} 14... Rg8 {[%clk 0:02:49.4]} 15. Qxg5 {[%clk 0:02:00.7]} 15...
Rxg5 {[%clk 0:02:50.3]} 16. Kg2 {[%clk 0:01:58]} 16... hxg3 {[%clk 0:02:46.5]}
17. fxg3 {[%clk 0:01:58]} 17... O-O-O {[%clk 0:02:46.1]} 18. Rh1 {[%clk
0:01:54.3]} 18... Ng4 {[%clk 0:02:45]} 19. Be2 {[%clk 0:01:50.7]} 19... Nb6
{[%clk 0:02:40.3]} 20. Bxg4 {[%clk 0:01:38.3]} 20... Rxg4 {[%clk 0:02:41.2]} 21.
Rad1 {[%clk 0:01:33.2]} 21... Rdg8 {[%clk 0:02:38.5]} 22. Nce2 {[%clk
0:01:31.8]} 22... Be4+ {[%clk 0:02:38.2]} 23. Kf2 {[%clk 0:01:30.1]} 23... Bxh1
{[%clk 0:02:38.2]} 24. Rxh1 {[%clk 0:01:29.7]} 24... Nd5 {[%clk 0:02:37.4]} 25.
Rh7 {[%clk 0:01:26.8]} 25... Nxf4 {[%clk 0:02:33.9]} 26. gxf4 {[%clk 0:01:27.7]}
26... R4g7 {[%clk 0:02:31]} 27. Rh2 {[%clk 0:01:26.8]} 27... Kc7 {[%clk
0:02:29.6]} 28. Kf3 {[%clk 0:01:12.9]} 28... a5 {[%clk 0:02:28.9]} 29. b3 {[%clk
0:01:11.9]} 29... b5 {[%clk 0:02:28.4]} 30. a3 {[%clk 0:01:11.8]} 30... Kb6
{[%clk 0:02:26.1]} 31. Kf2 {[%clk 0:01:07.8]} 31... c5 {[%clk 0:02:24.8]} 32.
dxc5+ {[%clk 0:01:07.6]} 32... Kxc5 {[%clk 0:02:25.7]} 33. Rh1 {[%clk
0:01:06.1]} 33... Rd8 {[%clk 0:02:21.1]} 34. Rc1+ {[%clk 0:01:05.5]} 34... Kb6
{[%clk 0:02:21.5]} 35. Ke3 {[%clk 0:01:06.1]} 35... Rh7 {[%clk 0:02:20.6]} 36.
Nd4 {[%clk 0:01:05.4]} 36... Rd5 {[%clk 0:02:07.6]} 37. Rc6+ {[%clk 0:01:04]}
37... Kb7 {[%clk 0:02:07.6]} 38. Rc2 {[%clk 0:01:01.7]} 38... Rh3+ {[%clk
0:01:59]} 39. Ke4 {[%clk 0:01:01.8]} 39... Rh1 {[%clk 0:01:59.6]} 40. Rd2 {[%clk
0:00:53.8]} 40... Re1+ {[%clk 0:01:57.2]} 41. Kf3 {[%clk 0:00:50.7]} 41... Ra1
{[%clk 0:01:56.4]} 42. Ke4 {[%clk 0:00:46.2]} 42... Rxa3 {[%clk 0:01:55.9]} 43.
f5 {[%clk 0:00:46.9]} 43... a4 {[%clk 0:01:54.2]} 44. fxe6 {[%clk 0:00:44.4]}
44... fxe6 {[%clk 0:01:55.1]} 45. Rh2 {[%clk 0:00:42.1]} 45... Rxd4+ {[%clk
0:01:51.3]} 46. Kxd4 {[%clk 0:00:42]} 46... Rxb3 {[%clk 0:01:52.2]} 47. Kc5
{[%clk 0:00:40.6]} 47... a3 {[%clk 0:01:51.4]} 48. Rh7+ {[%clk 0:00:40.6]} 48...
Ka6 {[%clk 0:01:48.4]} 49. Rh6 {[%clk 0:00:38.9]} 49... b4 {[%clk 0:01:44.1]}
50. Rxe6+ {[%clk 0:00:38.1]} 50... Ka5 {[%clk 0:01:44.5]} 51. Re8 {[%clk
0:00:37.8]} 51... Rc3+ {[%clk 0:01:44.3]} 52. Kd4 {[%clk 0:00:38.2]} 52... Ka4
{[%clk 0:01:42.2]} 53. e6 {[%clk 0:00:35]} 53... Kb3 {[%clk 0:01:42.4]} 54. e7
{[%clk 0:00:30.7]} 54... Rc7 {[%clk 0:01:42.1]} 0-1

[Event "Early-Titled-Tuesday-Blitz-October-10-2023"]
[Site "Chess.com"]
[Date "2023.10.10"]
[Round "9"]
[White "DeArron_Fox"]
[Black "emeli_chess"]
[Result "0-1"]
[WhiteElo "2516"]
[BlackElo "2405"]
[TimeControl "180+1"]
[EndTime "9:42:47 PDT"]
[Termination "emeli_chess won on time"]

1. d4 {[%clk 0:03:00.9]} 1... Nf6 {[%clk 0:02:57.5]} 2. c4 {[%clk 0:02:57.6]}
2... e6 {[%clk 0:02:57.4]} 3. Nf3 {[%clk 0:02:55.8]} 3... d5 {[%clk 0:02:57.2]}
4. e3 {[%clk 0:02:54]} 4... Nc6 {[%clk 0:02:53.2]} 5. Nc3 {[%clk 0:02:53.7]}
5... Bd6 {[%clk 0:02:49.2]} 6. Bd3 {[%clk 0:02:44]} 6... dxc4 {[%clk 0:02:49.1]}
7. Bxc4 {[%clk 0:02:44.9]} 7... O-O {[%clk 0:02:49.3]} 8. O-O {[%clk 0:02:43.8]}
8... e5 {[%clk 0:02:49.2]} 9. Qc2 {[%clk 0:02:01.2]} 9... a6 {[%clk 0:02:45.9]}
10. a3 {[%clk 0:01:58.8]} 10... h6 {[%clk 0:02:44.6]} 11. h3 {[%clk 0:01:42.6]}
11... exd4 {[%clk 0:02:25.4]} 12. exd4 {[%clk 0:01:40.9]} 12... Ne7 {[%clk
0:02:17.8]} 13. Re1 {[%clk 0:01:12.6]} 13... c6 {[%clk 0:02:13.5]} 14. Ne5
{[%clk 0:01:00.4]} 14... Ned5 {[%clk 0:02:06]} 15. Bd2 {[%clk 0:00:25.7]} 15...
Re8 {[%clk 0:02:04.3]} 16. Rad1 {[%clk 0:00:23.3]} 16... Be6 {[%clk 0:02:03.7]}
17. Ne4 {[%clk 0:00:12.5]} 17... Nxe4 {[%clk 0:01:56.5]} 18. Qxe4 {[%clk
0:00:13.4]} 18... Nf6 {[%clk 0:01:56.7]} 19. Qc2 {[%clk 0:00:06.8]} 19... Bxc4
{[%clk 0:01:56.6]} 20. Qxc4 {[%clk 0:00:07.7]} 20... Nd5 {[%clk 0:01:56.7]} 21.
Nd3 {[%clk 0:00:03.1]} 21... Qf6 {[%clk 0:01:52.9]} 22. Rxe8+ {[%clk 0:00:02.5]}
22... Rxe8 {[%clk 0:01:52.5]} 23. Re1 {[%clk 0:00:03.4]} 23... Rxe1+ {[%clk
0:01:49.6]} 24. Nxe1 {[%clk 0:00:04.2]} 24... Qf5 {[%clk 0:01:34.2]} 25. Qd3
{[%clk 0:00:03.5]} 25... Qe6 {[%clk 0:01:29.2]} 26. Nf3 {[%clk 0:00:02.1]} 26...
Nf6 {[%clk 0:01:21.5]} 27. Bc3 {[%clk 0:00:02]} 27... Qd5 {[%clk 0:01:20.2]} 28.
Qe3 {[%clk 0:00:02.1]} 28... Ne4 {[%clk 0:01:19.6]} 29. Ne5 {[%clk 0:00:02]}
29... Bxe5 {[%clk 0:01:18.6]} 30. dxe5 {[%clk 0:00:01.4]} 30... Nc5 {[%clk
0:01:12.4]} 31. Kh2 {[%clk 0:00:01.6]} 31... Ne6 {[%clk 0:01:12.4]} 32. f4
{[%clk 0:00:01.6]} 32... g6 {[%clk 0:01:12]} 0-1

[Event "Early-Titled-Tuesday-Blitz-October-10-2023"]
[Site "Chess.com"]
[Date "2023.10.10"]
[Round "9"]
[White "cycygogne"]
[Black "Balla_Tamas"]
[Result "1-0"]
[WhiteElo "2281"]
[BlackElo "2414"]
[TimeControl "180+1"]
[EndTime "9:42:51 PDT"]
[Termination "cycygogne won by resignation"]

1. e4 {[%clk 0:02:55]} 1... c5 {[%clk 0:02:58]} 2. Nf3 {[%clk 0:02:54.7]} 2...
Nc6 {[%clk 0:02:58.3]} 3. b4 {[%clk 0:02:54.8]} 3... cxb4 {[%clk 0:02:55.7]} 4.
d4 {[%clk 0:02:54.3]} 4... d5 {[%clk 0:02:55.9]} 5. exd5 {[%clk 0:02:54.4]} 5...
Qxd5 {[%clk 0:02:56.5]} 6. c4 {[%clk 0:02:54.7]} 6... bxc3 {[%clk 0:02:56.8]} 7.
Nxc3 {[%clk 0:02:55]} 7... Qa5 {[%clk 0:02:57.4]} 8. d5 {[%clk 0:02:55]} 8... e6
{[%clk 0:02:56.1]} 9. Bd2 {[%clk 0:02:47.9]} 9... Bb4 {[%clk 0:02:49.1]} 10. Rc1
{[%clk 0:02:43.4]} 10... exd5 {[%clk 0:02:46.1]} 11. a3 {[%clk 0:02:34.8]} 11...
Bxa3 {[%clk 0:02:23.3]} 12. Ra1 {[%clk 0:02:31.2]} 12... Be6 {[%clk 0:02:05.5]}
13. Nb5 {[%clk 0:02:27.6]} 13... Qd8 {[%clk 0:01:27.3]} 14. Rxa3 {[%clk
0:02:25.1]} 14... Nf6 {[%clk 0:01:26.2]} 15. Bd3 {[%clk 0:02:24.5]} 15... O-O
{[%clk 0:01:25.5]} 16. O-O {[%clk 0:02:24.4]} 16... Ne4 {[%clk 0:01:23.2]} 17.
Bf4 {[%clk 0:02:16.6]} 17... a6 {[%clk 0:01:05.8]} 18. Nc7 {[%clk 0:02:14.1]}
18... Rc8 {[%clk 0:01:05.7]} 19. Nxe6 {[%clk 0:02:06.6]} 19... fxe6 {[%clk
0:01:06.6]} 20. Bc1 {[%clk 0:01:52.9]} 20... Nc5 {[%clk 0:00:55.2]} 21. Bb1
{[%clk 0:01:48.8]} 21... h6 {[%clk 0:00:53.4]} 22. Qc2 {[%clk 0:01:44]} 22...
Ne4 {[%clk 0:00:53.7]} 23. Qe2 {[%clk 0:01:36.1]} 23... Qe7 {[%clk 0:00:43.5]}
24. Bxe4 {[%clk 0:01:33.1]} 24... dxe4 {[%clk 0:00:44.4]} 25. Qxe4 {[%clk
0:01:33.3]} 25... Nb4 {[%clk 0:00:35.9]} 26. Re3 {[%clk 0:01:23.9]} 26... Rf6
{[%clk 0:00:33.9]} 27. Bb2 {[%clk 0:01:21.1]} 27... e5 {[%clk 0:00:24.6]} 28.
Nxe5 {[%clk 0:01:12.9]} 28... Re6 {[%clk 0:00:24.6]} 29. Qg4 {[%clk 0:01:08.2]}
29... Nc2 {[%clk 0:00:22]} 30. Re2 {[%clk 0:01:01.1]} 30... Qf6 {[%clk 0:00:18]}
31. Rc1 {[%clk 0:00:55.5]} 31... Rc3 {[%clk 0:00:18.1]} 32. Bxc3 {[%clk
0:00:55.1]} 1-0

[Event "Early-Titled-Tuesday-Blitz-October-10-2023"]
[Site "Chess.com"]
[Date "2023.10.10"]
[Round "9"]
[White "TatjanaVasilevich"]
[Black "c63_amg"]
[Result "1-0"]
[WhiteElo "2632"]
[BlackElo "2798"]
[TimeControl "180+1"]
[EndTime "9:42:53 PDT"]
[Termination "TatjanaVasilevich won by resignation"]

1. Nf3 {[%clk 0:03:00.9]} 1... Nf6 {[%clk 0:02:57.6]} 2. b3 {[%clk 0:02:59]}
2... b6 {[%clk 0:02:56]} 3. Bb2 {[%clk 0:02:57.8]} 3... Bb7 {[%clk 0:02:56.6]}
4. g3 {[%clk 0:02:56.3]} 4... g6 {[%clk 0:02:56.9]} 5. Bg2 {[%clk 0:02:56.5]}
5... Bg7 {[%clk 0:02:57.6]} 6. O-O {[%clk 0:02:57.1]} 6... O-O {[%clk
0:02:58.3]} 7. c4 {[%clk 0:02:55.6]} 7... e6 {[%clk 0:02:55.3]} 8. d4 {[%clk
0:02:55.5]} 8... d5 {[%clk 0:02:51]} 9. Ne5 {[%clk 0:02:55.6]} 9... Nbd7 {[%clk
0:02:50.3]} 10. Nc3 {[%clk 0:02:55.2]} 10... Qc8 {[%clk 0:02:41.2]} 11. f4
{[%clk 0:02:52.3]} 11... dxc4 {[%clk 0:02:40.7]} 12. bxc4 {[%clk 0:02:51.4]}
12... Bxg2 {[%clk 0:02:39.4]} 13. Kxg2 {[%clk 0:02:51.8]} 13... c5 {[%clk
0:02:32.9]} 14. e3 {[%clk 0:02:51]} 14... cxd4 {[%clk 0:02:23.6]} 15. exd4
{[%clk 0:02:50.7]} 15... Rd8 {[%clk 0:02:22.4]} 16. Qe2 {[%clk 0:02:50.6]} 16...
Qb7+ {[%clk 0:02:18.6]} 17. Kg1 {[%clk 0:02:47.8]} 17... Rac8 {[%clk 0:02:18.9]}
18. Rac1 {[%clk 0:02:43.8]} 18... Nf8 {[%clk 0:01:50.5]} 19. Rfd1 {[%clk
0:02:38]} 19... N6d7 {[%clk 0:01:50.8]} 20. Nb5 {[%clk 0:02:34.8]} 20... Nf6
{[%clk 0:01:26.4]} 21. Ba3 {[%clk 0:02:21.1]} 21... Ne4 {[%clk 0:01:25.9]} 22.
Re1 {[%clk 0:02:19.3]} 22... f5 {[%clk 0:01:25.5]} 23. Red1 {[%clk 0:01:48.6]}
23... Bxe5 {[%clk 0:01:14.3]} 24. fxe5 {[%clk 0:01:47]} 24... Ng5 {[%clk
0:00:50.7]} 25. Qg2 {[%clk 0:01:39.9]} 25... Qa6 {[%clk 0:00:23.4]} 26. Be7
{[%clk 0:01:37.1]} 26... Ne4 {[%clk 0:00:15.9]} 27. Bxd8 {[%clk 0:01:34.3]}
27... Rxd8 {[%clk 0:00:16.8]} 28. Nc3 {[%clk 0:01:32.2]} 28... Nxc3 {[%clk
0:00:11.9]} 29. Rxc3 {[%clk 0:01:32.1]} 29... Nd7 {[%clk 0:00:12.8]} 30. Re1
{[%clk 0:01:28.7]} 30... Qa5 {[%clk 0:00:12.1]} 31. Rcc1 {[%clk 0:01:28.2]}
31... b5 {[%clk 0:00:12.4]} 32. d5 {[%clk 0:01:28.4]} 32... Nc5 {[%clk
0:00:09.5]} 33. Red1 {[%clk 0:01:21.5]} 33... Ne4 {[%clk 0:00:08.3]} 34. d6
{[%clk 0:01:16.1]} 34... Qb6+ {[%clk 0:00:07.9]} 35. c5 {[%clk 0:01:16.6]} 35...
Nxc5 {[%clk 0:00:03.1]} 36. Qf2 {[%clk 0:01:16.6]} 1-0

[Event "Early-Titled-Tuesday-Blitz-October-10-2023"]
[Site "Chess.com"]
[Date "2023.10.10"]
[Round "9"]
[White "JesseFebruary"]
[Black "LamaChampetre"]
[Result "0-1"]
[WhiteElo "2071"]
[BlackElo "2246"]
[TimeControl "180+1"]
[EndTime "9:42:55 PDT"]
[Termination "LamaChampetre won by resignation"]

1. e4 {[%clk 0:02:40.9]} 1... c5 {[%clk 0:02:59.5]} 2. Nf3 {[%clk 0:02:38.5]}
2... g6 {[%clk 0:02:59.8]} 3. d4 {[%clk 0:02:35.1]} 3... cxd4 {[%clk 0:03:00.7]}
4. Nxd4 {[%clk 0:02:35.1]} 4... Nc6 {[%clk 0:03:01.1]} 5. c4 {[%clk 0:02:33.1]}
5... Bg7 {[%clk 0:02:59.3]} 6. Be3 {[%clk 0:02:22.1]} 6... Nf6 {[%clk
0:02:59.2]} 7. Nc3 {[%clk 0:02:21.5]} 7... Ng4 {[%clk 0:02:59.4]} 8. Nxc6 {[%clk
0:02:10.5]} 8... Nxe3 {[%clk 0:02:58.8]} 9. Nxd8 {[%clk 0:02:05.4]} 9... Nxd1
{[%clk 0:02:58.7]} 10. Nxd1 {[%clk 0:02:02.7]} 10... Kxd8 {[%clk 0:02:57.8]} 11.
Be2 {[%clk 0:02:02.2]} 11... d6 {[%clk 0:02:57.5]} 12. O-O {[%clk 0:02:01.7]}
12... Be6 {[%clk 0:02:53.9]} 13. Rc1 {[%clk 0:01:58.1]} 13... Rc8 {[%clk
0:02:53.8]} 14. b3 {[%clk 0:01:57.5]} 14... Kd7 {[%clk 0:02:54.1]} 15. f4 {[%clk
0:01:55.5]} 15... f5 {[%clk 0:02:45.9]} 16. Nf2 {[%clk 0:01:36.8]} 16... Bd4
{[%clk 0:02:43.3]} 17. Rfd1 {[%clk 0:01:26.6]} 17... Be3 {[%clk 0:02:39.5]} 18.
Rc3 {[%clk 0:01:22.2]} 18... Bxf4 {[%clk 0:02:38.2]} 19. exf5 {[%clk 0:01:17.1]}
19... Bxf5 {[%clk 0:02:36.2]} 20. g4 {[%clk 0:01:17.2]} 20... Be6 {[%clk
0:02:33.3]} 21. Nh3 {[%clk 0:01:10.8]} 21... Be5 {[%clk 0:02:32.3]} 22. Re3
{[%clk 0:01:05.8]} 22... Kc7 {[%clk 0:01:51]} 23. Ng5 {[%clk 0:00:55.3]} 23...
Bg8 {[%clk 0:01:50.9]} 24. c5 {[%clk 0:00:47.7]} 24... h6 {[%clk 0:01:47.8]} 25.
Ne4 {[%clk 0:00:43.7]} 25... Rd8 {[%clk 0:01:38.7]} 26. cxd6+ {[%clk 0:00:42.2]}
26... exd6 {[%clk 0:01:36]} 27. Rc1+ {[%clk 0:00:39.2]} 27... Kb8 {[%clk
0:01:36]} 28. Rd3 {[%clk 0:00:31.3]} 28... Be6 {[%clk 0:01:32.5]} 29. Rdd1
{[%clk 0:00:23.6]} 29... Rhf8 {[%clk 0:01:27.2]} 30. h3 {[%clk 0:00:17.6]} 30...
Bf4 {[%clk 0:01:22.1]} 31. Rc2 {[%clk 0:00:15.4]} 31... Be3+ {[%clk 0:01:21.6]}
32. Kg2 {[%clk 0:00:14.5]} 32... d5 {[%clk 0:01:20.5]} 33. Ng3 {[%clk
0:00:12.7]} 33... d4 {[%clk 0:01:17.9]} 34. Rd3 {[%clk 0:00:11.8]} 34... Bd5+
{[%clk 0:01:17.8]} 35. Kh2 {[%clk 0:00:09.1]} 35... Rf2+ {[%clk 0:01:17.3]} 36.
Kg1 {[%clk 0:00:08.7]} 36... Rxe2+ {[%clk 0:01:12.3]} 0-1

[Event "Early-Titled-Tuesday-Blitz-October-10-2023"]
[Site "Chess.com"]
[Date "2023.10.10"]
[Round "9"]
[White "Gyulamiryan-koryun"]
[Black "mmDarko"]
[Result "0-1"]
[WhiteElo "1993"]
[BlackElo "2312"]
[TimeControl "180+1"]
[EndTime "9:42:57 PDT"]
[Termination "mmDarko won on time"]

1. e4 {[%clk 0:02:59.7]} 1... e6 {[%clk 0:03:00.9]} 2. d4 {[%clk 0:02:58.2]}
2... d5 {[%clk 0:03:01.8]} 3. Nd2 {[%clk 0:02:56.7]} 3... Nf6 {[%clk 0:03:01.5]}
4. e5 {[%clk 0:02:56.4]} 4... Nfd7 {[%clk 0:03:01.8]} 5. Bd3 {[%clk 0:02:56.4]}
5... b6 {[%clk 0:02:59.9]} 6. Ne2 {[%clk 0:02:55]} 6... a5 {[%clk 0:03:00.1]} 7.
a4 {[%clk 0:02:52.2]} 7... Ba6 {[%clk 0:02:59.8]} 8. Nf3 {[%clk 0:02:45]} 8...
Bxd3 {[%clk 0:02:59]} 9. Qxd3 {[%clk 0:02:40]} 9... Qc8 {[%clk 0:02:57.7]} 10.
Ng5 {[%clk 0:02:31.4]} 10... h6 {[%clk 0:02:54.1]} 11. Nh3 {[%clk 0:02:31]}
11... Qa6 {[%clk 0:02:51.9]} 12. Qf3 {[%clk 0:02:28.1]} 12... c5 {[%clk
0:02:45.7]} 13. c3 {[%clk 0:02:27.3]} 13... Nc6 {[%clk 0:02:44.1]} 14. Be3
{[%clk 0:02:20.6]} 14... cxd4 {[%clk 0:02:40.4]} 15. cxd4 {[%clk 0:02:18]} 15...
Bb4+ {[%clk 0:02:33.7]} 16. Kf1 {[%clk 0:02:04.4]} 16... O-O {[%clk 0:02:08.9]}
17. Rc1 {[%clk 0:02:01]} 17... Rac8 {[%clk 0:02:05.6]} 18. g4 {[%clk 0:01:54]}
18... f6 {[%clk 0:02:00.8]} 19. Nf4 {[%clk 0:01:18.9]} 19... fxe5 {[%clk
0:01:57]} 20. dxe5 {[%clk 0:01:16.7]} 20... Ncxe5 {[%clk 0:01:45.9]} 21. Qg3
{[%clk 0:01:13.3]} 21... Rxc1+ {[%clk 0:01:44.9]} 22. Bxc1 {[%clk 0:01:11.7]}
22... Nc5 {[%clk 0:01:21.5]} 23. Kg2 {[%clk 0:00:51]} 23... Ne4 {[%clk 0:01:17]}
24. Qb3 {[%clk 0:00:47.2]} 24... g5 {[%clk 0:01:04.7]} 25. Nh3 {[%clk
0:00:20.4]} 25... Qxe2 {[%clk 0:01:00]} 26. Be3 {[%clk 0:00:08.8]} 26... Qxg4+
{[%clk 0:00:56.4]} 0-1

[Event "Early-Titled-Tuesday-Blitz-October-10-2023"]
[Site "Chess.com"]
[Date "2023.10.10"]
[Round "9"]
[White "jcibarra"]
[Black "Rutricks"]
[Result "1-0"]
[WhiteElo "2913"]
[BlackElo "2679"]
[TimeControl "180+1"]
[EndTime "9:43:01 PDT"]
[Termination "jcibarra won by checkmate"]

1. e4 {[%clk 0:03:00.9]} 1... g6 {[%clk 0:01:57.2]} 2. d4 {[%clk 0:02:57]} 2...
Bg7 {[%clk 0:01:57.2]} 3. Nc3 {[%clk 0:02:55.2]} 3... c6 {[%clk 0:01:57.6]} 4.
Nf3 {[%clk 0:02:50.9]} 4... d5 {[%clk 0:01:58.2]} 5. Bf4 {[%clk 0:02:50.5]} 5...
dxe4 {[%clk 0:01:58.2]} 6. Nxe4 {[%clk 0:02:51.3]} 6... Nf6 {[%clk 0:01:59.1]}
7. Nxf6+ {[%clk 0:02:51.4]} 7... exf6 {[%clk 0:02:00]} 8. Be2 {[%clk 0:02:51.4]}
8... O-O {[%clk 0:02:00.9]} 9. O-O {[%clk 0:02:52]} 9... Re8 {[%clk 0:02:01.8]}
10. c4 {[%clk 0:02:52]} 10... a5 {[%clk 0:02:02.7]} 11. Qd2 {[%clk 0:02:51.3]}
11... Na6 {[%clk 0:02:03.2]} 12. Rfd1 {[%clk 0:02:51.5]} 12... Bf5 {[%clk
0:02:00.9]} 13. d5 {[%clk 0:02:45.3]} 13... cxd5 {[%clk 0:01:43.3]} 14. cxd5
{[%clk 0:02:43.2]} 14... Nc5 {[%clk 0:01:39.5]} 15. Rac1 {[%clk 0:02:27.1]}
15... Ne4 {[%clk 0:01:27.9]} 16. Qd4 {[%clk 0:02:25.9]} 16... Nc3 {[%clk
0:01:22.9]} 17. Qxc3 {[%clk 0:02:19.7]} 17... Rxe2 {[%clk 0:01:23.1]} 18. Nd4
{[%clk 0:02:19.7]} 18... Re4 {[%clk 0:01:20.7]} 19. Nxf5 {[%clk 0:02:09.8]}
19... Rxf4 {[%clk 0:01:21.1]} 20. Nxg7 {[%clk 0:01:52.7]} 20... Kxg7 {[%clk
0:01:22]} 21. d6 {[%clk 0:01:52.3]} 21... Qd7 {[%clk 0:01:22]} 22. Qe3 {[%clk
0:01:44.4]} 22... Rb4 {[%clk 0:01:05.2]} 23. Rc7 {[%clk 0:01:40.7]} 23... Qg4
{[%clk 0:00:19.1]} 24. f3 {[%clk 0:01:40.1]} 24... Qf5 {[%clk 0:00:18.6]} 25.
Qe7 {[%clk 0:01:12.3]} 25... Rf8 {[%clk 0:00:13]} 26. d7 {[%clk 0:01:12.2]}
26... Rxb2 {[%clk 0:00:01.3]} 27. Qxf8+ {[%clk 0:01:11]} 27... Kxf8 {[%clk
0:00:01.5]} 28. d8=Q+ {[%clk 0:01:11.6]} 28... Kg7 {[%clk 0:00:02.4]} 29. Rxf7+
{[%clk 0:01:10.8]} 29... Kh6 {[%clk 0:00:01.3]} 30. Qd4 {[%clk 0:00:58.8]} 30...
Qg5 {[%clk 0:00:01.5]} 31. Qxb2 {[%clk 0:00:55.4]} 31... Qe3+ {[%clk 0:00:01.7]}
32. Qf2 {[%clk 0:00:55]} 32... Qe2 {[%clk 0:00:02.4]} 33. Qh4# {[%clk 0:00:54]}
1-0

[Event "Early-Titled-Tuesday-Blitz-October-10-2023"]
[Site "Chess.com"]
[Date "2023.10.10"]
[Round "9"]
[White "Alonmindlin"]
[Black "N4700000"]
[Result "1-0"]
[WhiteElo "2714"]
[BlackElo "2441"]
[TimeControl "180+1"]
[EndTime "9:43:03 PDT"]
[Termination "Alonmindlin won by resignation"]

1. e4 {[%clk 0:02:57.5]} 1... c6 {[%clk 0:03:00.4]} 2. c4 {[%clk 0:02:51.3]}
2... d5 {[%clk 0:03:00.1]} 3. cxd5 {[%clk 0:02:48.8]} 3... cxd5 {[%clk 0:03:01]}
4. exd5 {[%clk 0:02:49.6]} 4... Nf6 {[%clk 0:02:59.8]} 5. Nc3 {[%clk 0:02:50.5]}
5... Nxd5 {[%clk 0:02:50.3]} 6. Nf3 {[%clk 0:02:50.8]} 6... Nc6 {[%clk
0:02:47.9]} 7. Bb5 {[%clk 0:02:50.7]} 7... g6 {[%clk 0:02:31.3]} 8. Qa4 {[%clk
0:02:48.6]} 8... Nb6 {[%clk 0:02:19.1]} 9. Bxc6+ {[%clk 0:02:44.4]} 9... bxc6
{[%clk 0:02:20]} 10. Qxc6+ {[%clk 0:02:44.9]} 10... Bd7 {[%clk 0:02:20.2]} 11.
Qe4 {[%clk 0:02:45.5]} 11... Bg7 {[%clk 0:02:18]} 12. O-O {[%clk 0:02:44.5]}
12... O-O {[%clk 0:02:17.9]} 13. d4 {[%clk 0:02:44.7]} 13... Rc8 {[%clk
0:02:07.4]} 14. Rd1 {[%clk 0:02:43.2]} 14... Bf5 {[%clk 0:01:45.2]} 15. Qh4
{[%clk 0:02:40.4]} 15... Nd5 {[%clk 0:01:28]} 16. Bh6 {[%clk 0:02:34.3]} 16...
Nxc3 {[%clk 0:01:13.3]} 17. bxc3 {[%clk 0:02:35.2]} 17... Rxc3 {[%clk
0:01:13.1]} 18. Ng5 {[%clk 0:02:31.1]} 18... f6 {[%clk 0:01:07.3]} 19. Bxg7
{[%clk 0:02:29.3]} 19... fxg5 {[%clk 0:01:05.7]} 20. Qh6 {[%clk 0:02:28.7]}
20... Rf7 {[%clk 0:01:01.9]} 21. Be5 {[%clk 0:02:27.6]} 21... Rc2 {[%clk
0:00:24.5]} 22. Qxg5 {[%clk 0:02:17.5]} 22... Qd5 {[%clk 0:00:19.2]} 23. Rac1
{[%clk 0:02:14.9]} 23... h6 {[%clk 0:00:14.1]} 24. Qxh6 {[%clk 0:02:12.3]} 24...
Rh7 {[%clk 0:00:14.6]} 25. Qf4 {[%clk 0:02:06.4]} 25... Qc4 {[%clk 0:00:13]} 26.
Rxc2 {[%clk 0:02:03.4]} 26... Qxc2 {[%clk 0:00:13.9]} 27. Rc1 {[%clk 0:02:03.3]}
27... Qxa2 {[%clk 0:00:13.3]} 28. g4 {[%clk 0:02:02.3]} 28... Rh4 {[%clk
0:00:11]} 29. h3 {[%clk 0:01:55.4]} 29... Qa3 {[%clk 0:00:09.7]} 30. Qe3 {[%clk
0:01:33.3]} 30... Qxe3 {[%clk 0:00:08]} 31. fxe3 {[%clk 0:01:34.2]} 31... Be6
{[%clk 0:00:07.3]} 32. Kg2 {[%clk 0:01:34.3]} 32... Rh7 {[%clk 0:00:07.2]} 33.
Rc7 {[%clk 0:01:29.8]} 33... a6 {[%clk 0:00:07.3]} 34. Ra7 {[%clk 0:01:28.2]}
34... Bc4 {[%clk 0:00:07.8]} 35. Kg3 {[%clk 0:01:25]} 35... Kf7 {[%clk
0:00:08.3]} 36. e4 {[%clk 0:01:24.7]} 36... Ke6 {[%clk 0:00:08.3]} 37. Bf4
{[%clk 0:01:24.4]} 37... Bb5 {[%clk 0:00:07.4]} 38. d5+ {[%clk 0:01:24.5]} 38...
Kf6 {[%clk 0:00:07.9]} 39. e5+ {[%clk 0:01:24.9]} 39... Kf7 {[%clk 0:00:08]} 40.
Bg5 {[%clk 0:01:25]} 40... Ke8 {[%clk 0:00:07.9]} 41. e6 {[%clk 0:01:25]} 41...
Kd8 {[%clk 0:00:08.1]} 42. d6 {[%clk 0:01:25.1]} 42... Kc8 {[%clk 0:00:08.1]}
43. d7+ {[%clk 0:01:21.5]} 43... Kd8 {[%clk 0:00:07.6]} 44. Ra8+ {[%clk
0:01:20.5]} 1-0